bitfinex-derivatives/quotes_SOLF0:USTF0_20250818
["timestamp","ask_amount","ask_price","bid_price","bid_amount"]
[1755479806652,3.79248381,189.87,189.85,3.06]
[1755479806856,3.79248381,189.87,189.84,0.03676612]
[1755479807154,3.07,189.85,189.84,0.03676612]
[1755479807357,6.87285653,189.85,189.84,0.03676612]
[1755479807850,3.80285653,189.85,189.84,0.03676612]
[1755479808053,2.97,189.89,189.84,0.03676612]
[1755479808255,2.97,189.87,189.84,0.03676612]
[1755479808456,3.8027117,189.86,189.85,2.87]
[1755479812058,3.8027117,189.86,189.84,0.03676612]
[1755479812253,3.8027117,189.85,189.84,2.90676612]
[1755479814955,3.66604431,189.85,189.84,8.17106612]
[1755479815155,2.97,189.91,189.84,2.90676612]
[1755479815352,8.02974595,189.9,189.84,2.90676612]
[1755479815556,10.99974595,189.89,189.84,0.03676612]
[1755479815756,8.02974595,189.88,189.86,2.87]
[1755479815962,2.97,189.89,189.87,2.87]
[1755479816158,3.83849185,189.88,189.87,2.87]
[1755479816353,3.83849185,189.88,189.84,0.03676612]
[1755479816354,3.83784877,189.88,189.84,2.90676612]
[1755479816555,134.22,189.98,189.84,2.90676612]
[1755479816556,3.83804403,189.87,189.84,2.90676612]
[1755479816754,2.97,189.91,189.84,0.03676612]
[1755479816959,2.97,189.89,189.83,2.87]
[1755479817155,2.97,189.87,189.84,2.87]
[1755479817356,2.97,189.87,189.85,2.87]
[1755479820265,8.80526487,189.91,189.84,0.03416099]
[1755479820469,2.97,189.85,189.76,2.87]
[1755479820661,2.97,189.83,189.76,2.87]
[1755479822568,2.97,189.83,189.78,2.87]
[1755479822764,2.97,189.83,189.77,5.2662]
[1755479822969,0.03566711,189.81,189.78,2.87]
[1755479823166,0.03566711,189.81,189.63,498.5603]
[1755479823167,0.03566711,189.81,189.75,2.87]
[1755479823663,139.85526487,189.92,189.74,3.32086544]
[1755479823664,139.85526487,189.92,189.79,2.87]
[1755479823871,2.97,189.9,189.79,2.87]
[1755479824067,2.97,189.9,189.84,2.87]
[1755479824865,2.97,189.9,189.85,5.264]
[1755479825066,2.97,189.9,189.87,2.87]
[1755479825264,2.97,189.9,189.85,5.264]
[1755479825567,6.75198312,189.98,189.83,2.87]
[1755479825568,2.97,189.98,189.83,2.87]
[1755479825770,0.03505748,189.89,189.83,2.87]
[1755479825972,2.97,189.87,189.83,2.87]
[1755479826269,5.83526487,189.96,189.79,2.87]
[1755479826465,2.97,189.9,189.85,5.2639]
[1755479826664,2.97,189.9,189.88,2.87]
[1755479826873,2.97,189.98,189.83,2.87]
[1755479827167,2.97,189.96,189.85,2.87]
[1755479827367,2.97,189.94,189.85,2.87]
[1755479827674,3.78177724,189.93,189.85,2.87]
[1755479827874,2.97,189.94,189.85,2.87]
[1755479828072,3.78009126,189.93,189.87,5.2634]
[1755479828371,3.78009126,189.93,189.82,3.32086544]
[1755479828372,3.00402916,189.91,189.89,2.87]
[1755479828772,2.97,189.91,189.89,2.87]
[1755479829969,0.03365581,189.92,189.83,2.87]
[1755479830269,0.03365581,189.92,189.86,3.32086544]
[1755479830575,0.03365581,189.92,189.87,2.87]
[1755479830774,2.97,189.94,189.87,2.87]
[1755479830965,2.97,189.94,189.89,5.2626]
[1755479831173,0.03345941,189.91,189.9,2.87]
[1755479833374,2.97,189.99,189.93,5.2617]
[1755479833678,2.97,190.06,189.94,2.87]
[1755479833874,2.97,190.04,189.94,2.87]
[1755479834069,2.97,190.02,189.94,2.87]
[1755479834277,3.85786249,190.01,189.94,2.87]
[1755479834579,2.97,189.99,189.92,2.87]
[1755479834777,2.97,189.97,189.84,3.32086544]
[1755479834979,2.97,189.95,189.85,2.87]
[1755479835272,2.97,189.95,189.89,2.90529481]
[1755479837874,2.97,189.95,189.89,0.03529481]
[1755479838681,2.98,189.93,189.89,0.03529481]
[1755479839777,3.82958725,189.92,189.89,0.03529481]
[1755479839978,2.98,189.9,189.89,0.03529481]
[1755479841480,2.98,189.93,189.9,3.07]
[1755479841673,2.98,189.92,189.9,3.07]
[1755479842284,2.98,189.92,189.91,3.07]
[1755479842487,3.32086544,189.99,189.91,3.07]
[1755479842683,2.98,189.97,189.91,3.07]
[1755479842888,3.83258058,189.96,189.91,3.07]
[1755479843088,2.98,189.94,189.92,3.07]
[1755479844495,2.98,189.94,189.91,0.03452069]
[1755479844496,3.32086544,189.99,189.93,3.07]
[1755479844696,2.98,189.96,189.93,3.07]
[1755479844894,2.98,189.95,189.93,3.07]
[1755479845195,2.98,189.98,189.91,3.10452069]
[1755479845399,2.98,189.96,189.91,3.10452069]
[1755479845591,2.98,189.94,189.91,0.03452069]
[1755479845792,3.32086544,189.99,189.91,0.03452069]
[1755479846098,2.98,189.97,189.91,0.03452069]
[1755479846302,2.98,189.95,189.91,0.03452069]
[1755479846597,2.98,189.93,189.91,0.03452069]
[1755479846798,6.81210692,189.92,189.91,0.03452069]
[1755479848596,3.83210692,189.92,189.83,3.07]
[1755479848796,2.98,189.9,189.83,3.07]
[1755479848995,6.81210692,189.89,189.83,3.07]
[1755479849196,2.98,189.89,189.83,3.07]
[1755479849898,0.03795852,189.88,189.83,3.07]
[1755479850098,3.01795852,189.88,189.83,3.07]
[1755479850296,2.98,189.87,189.84,3.07]
[1755479850493,2.98,189.87,189.77,3.07]
[1755479851008,0.03496815,189.84,189.77,3.07]
[1755479851192,0.03496815,189.84,189.81,3.07]
[1755479852403,0.03496815,189.84,189.79,3.07]
[1755479852602,3.01496815,189.84,189.79,3.07]
[1755479853400,0.03496815,189.84,189.79,3.07]
[1755479854604,0.03496815,189.84,189.81,3.07]
[1755479856806,2.98,189.92,189.81,3.07]
[1755479857002,2.98,189.94,189.89,3.07]
[1755479857210,6.81843654,189.93,189.91,3.07]
[1755479857511,2.98,189.95,189.92,3.07]
[1755479857695,2.98,189.93,189.92,3.07]
[1755479858299,359.55526487,190.01,189.92,3.07]
[1755479858503,2.98,189.99,189.92,3.07]
[1755479858704,2.98,189.97,189.92,3.07]
[1755479858902,2.98,189.98,189.92,5.262]
[1755479859097,2.98,189.98,189.96,3.07]
[1755479859098,3.91696726,189.97,189.96,3.07]
[1755479859302,2.98,189.99,189.97,3.07]
[1755479859502,2.98,190.04,189.93,5.2617]
[1755479859709,2.98,190.02,189.94,3.07]
[1755479859904,2.98,190.0,189.94,3.07]
[1755479860106,2.98,189.98,189.94,3.07]
[1755479860302,2.98,189.96,189.94,3.07]
[1755479860509,5.83526487,190.04,189.95,0.03549385]
[1755479860807,2.98,189.98,189.96,3.07]
[1755479861008,4.02982667,189.97,189.96,3.07]
[1755479861207,2.98,189.98,189.96,3.07]
[1755479861809,2.98,189.97,189.96,3.07]
[1755479862011,7.00868323,189.97,189.96,3.07]
[1755479862311,2.98,189.97,189.96,3.07]
[1755479862499,2.98,190.03,189.96,3.07]
[1755479862703,4.02800458,190.02,189.96,3.07]
[1755479862898,4.02800458,190.01,189.96,3.07]
[1755479863105,2.98,190.05,189.96,3.07]
[1755479863305,4.02568462,190.04,189.96,3.07]
[1755479863509,4.02568462,190.03,189.96,3.07]
[1755479863708,4.02568462,190.02,190.0,3.07]
[1755479863903,2.98,190.03,190.01,3.07]
[1755479864207,4.02543358,190.02,190.01,3.07]
[1755479865011,2.98,190.04,190.01,3.07]
[1755479865210,4.02375498,190.03,190.02,3.07]
[1755479866116,2.98,190.01,190.0,3.10389776]
[1755479866312,2.98,190.08,190.0,3.10389776]
[1755479866607,2.98,190.06,190.0,3.10389776]
[1755479866818,4.03476204,190.05,190.01,3.07]
[1755479867113,7.01476204,190.04,190.02,3.07]
[1755479867307,4.03476204,190.03,190.02,3.07]
[1755479867710,7.01476204,190.03,190.02,3.07]
[1755479868213,2.98,190.03,190.02,3.07]
[1755479868801,7.01491808,190.03,190.02,3.07]
[1755479869013,4.03491808,190.03,190.02,3.07]
[1755479869413,6.85491808,190.03,190.02,3.07]
[1755479869607,4.03491808,190.03,190.0,2.92389776]
[1755479869805,5.83526487,190.09,190.0,2.92389776]
[1755479869806,2.82,190.01,190.0,0.03389776]
[1755479870007,6.85453202,190.01,190.0,0.03389776]
[1755479872114,4.03453202,190.01,190.0,2.92389776]
[1755479872315,2.82,190.04,190.01,2.89]
[1755479872510,4.03327097,190.03,190.0,0.03389776]
[1755479872817,2.82,190.01,190.0,0.03389776]
[1755479873014,2.82,190.08,190.0,2.92389776]
[1755479873215,2.82,190.06,190.0,2.92389776]
[1755479873411,2.82,190.04,190.0,0.03389776]
[1755479873613,2.82,190.02,190.01,2.89]
[1755479873813,6.85372618,190.02,190.01,2.89]
[1755479874115,2.82,190.02,190.01,2.89]
[1755479874316,5.83526487,190.09,190.01,2.89]
[1755479874617,2.82,190.03,190.0,0.03389776]
[1755479874814,9.15613031,190.1,190.0,2.92389776]
[1755479875015,2.82,190.08,190.0,2.92389776]
[1755479875218,2.82,190.06,190.0,2.92389776]
[1755479875412,6.85240464,190.05,190.0,2.92389776]
[1755479875716,4.03240464,190.04,190.0,2.92389776]
[1755479875914,2.82,190.06,190.0,2.92389776]
[1755479876112,4.03131944,190.05,190.0,2.92389776]
[1755479876414,2.82,190.06,190.0,2.92389776]
[1755479876616,4.03016756,190.05,190.0,2.92389776]
[1755479876818,353.78,190.11,190.0,0.03389776]
[1755479876819,2.82,190.1,190.0,0.03389776]
[1755479877009,2.82,190.08,190.0,0.03389776]
[1755479877214,4.03016756,190.07,190.0,0.03389776]
[1755479877415,5.83526487,190.1,190.0,0.03389776]
[1755479877416,6.85016756,190.06,190.0,2.92389776]
[1755479877614,4.03016756,190.05,190.0,2.92389776]
[1755479877815,6.84962456,190.04,190.0,0.03389776]
[1755479878011,2.82,190.04,190.03,2.89]
[1755479878315,2.82,190.06,190.04,2.89]
[1755479878517,4.02859565,190.05,190.04,2.89]
[1755479879918,6.84859565,190.05,190.04,2.89]
[1755479880221,2.82,190.03,190.0,2.89]
[1755479880518,2.82,190.08,189.92,2.89]
[1755479880720,2.82,190.06,189.99,2.89]
[1755479880911,2.82,190.04,189.92,2.89]
[1755479881420,2.82,190.02,189.97,2.89]
[1755479881816,2.82,190.0,189.9,2.89]
[1755479882218,2.82,189.98,189.9,2.89]
[1755479882417,3.32086544,190.01,189.9,2.89]
[1755479882622,2.82,189.99,189.9,2.89]
[1755479882822,2.82,189.97,189.91,2.89]
[1755479883623,3.32086544,190.01,189.91,5.2623]
[1755479883821,2.82,189.96,189.94,2.89]
[1755479884323,2.82,189.96,189.83,135.50086544]
[1755479884324,2.82,190.0,189.93,2.89]
[1755479885021,2.82,189.98,189.93,2.89]
[1755479885212,2.82,189.98,189.88,2.89]
[1755479885412,2.82,189.98,189.93,5.2618]
[1755479885618,2.82,190.04,189.88,2.89]
[1755479885818,3.32086544,190.05,189.89,5.2629]
[1755479885819,2.82,190.02,189.89,5.2629]
[1755479886021,2.82,190.0,189.9,2.89]
[1755479886216,2.82,189.98,189.9,2.89]
[1755479886421,3.32086544,190.01,189.9,2.89]
[1755479886422,2.82,189.96,189.9,2.89]
[1755479886925,2.82,190.0,189.9,8.1525]
[1755479887119,2.82,189.98,189.91,2.89]
[1755479887522,2.82,189.98,189.94,2.89]
[1755479887720,2.82,189.98,189.88,2.89]
[1755479887920,2.82,189.98,189.89,5.2629]
[1755479888121,2.82,189.96,189.88,2.89]
[1755479888718,2.82,189.96,189.91,2.89]
[1755479888920,2.82,189.96,189.92,2.89]
[1755479889322,2.82,189.94,189.92,2.89]
[1755479889519,3.32086544,190.01,189.83,135.50086544]
[1755479889723,6.84683982,190.0,189.87,5.2632]
[1755479889927,2.82,189.98,189.88,2.89]
[1755479890127,2.82,189.96,189.88,2.89]
[1755479890328,2.82,189.94,189.88,2.89]
[1755479891024,4.02680382,189.93,189.88,2.89]
[1755479891326,2.82,189.92,189.86,2.89]
[1755479891528,2.82,189.92,189.84,2.89]
[1755479892024,2.82,189.92,189.84,5.2641]
[1755479892224,2.82,189.92,189.85,2.89]
[1755479892616,2.82,189.9,189.81,2.89]
[1755479892820,2.82,189.88,189.81,2.89]
[1755479894326,2.82,189.86,189.81,2.89]
[1755479894729,2.82,189.86,189.76,2.89]
[1755479895027,2.82,189.86,189.8,2.89]
[1755479897627,2.82,189.84,189.74,2.89]
[1755479899024,2.82,189.84,189.79,3.03]
[1755479899518,2.96,189.86,189.73,3.32086544]
[1755479899723,3.32086544,189.93,189.77,3.32086544]
[1755479899925,2.96,189.88,189.78,3.03]
[1755479900133,2.96,189.86,189.8,3.03]
[1755479901230,2.96,189.88,189.8,3.03]
[1755479901428,4.04265189,189.87,189.8,3.03]
[1755479901737,2.96,189.88,189.81,5.2651]
[1755479901929,2.96,189.86,189.83,3.03]
[1755479902234,2.96,189.86,189.85,3.03]
[1755479902827,3.32086544,189.93,189.83,3.03]
[1755479903036,2.96,189.84,189.78,3.03]
[1755479907334,2.96,189.84,189.74,3.03]
[1755479907640,2.96,189.88,189.74,3.03]
[1755479907843,2.96,189.86,189.79,3.03]
[1755479909335,2.96,189.84,189.79,3.03]
[1755479909638,2.96,189.84,189.8,3.03]
[1755479910439,2.96,189.84,189.76,3.03]
[1755479910942,2.96,189.82,189.73,3.03]
[1755479911134,4.0401749,189.81,189.73,3.03]
[1755479911441,2.96,189.8,189.73,3.03]
[1755479911639,2.96,189.8,189.74,3.03]
[1755479912740,2.96,189.87,189.72,3.03]
[1755479912934,2.96,189.85,189.75,3.03]
[1755479913135,4.04027836,189.84,189.75,3.03]
[1755479913339,4.04027836,189.84,189.8,3.03]
[1755479913545,2.96,189.84,189.8,3.03]
[1755479913841,3.32086544,189.89,189.81,3.03]
[1755479913842,2.96,189.83,189.81,3.03]
[1755479914032,2.96,189.85,189.83,3.03]
[1755479914233,2.96,189.91,189.81,3.03]
[1755479914444,4.04180461,189.9,189.81,3.03]
[1755479914642,2.96,189.88,189.81,3.03]
[1755479914938,4.04180461,189.87,189.82,3.03]
[1755479915243,2.96,189.85,189.83,3.03]
[1755479915435,2.96,189.91,189.75,3.03]
[1755479915637,6.28086544,189.89,189.75,8.2966]
[1755479915839,2.96,189.87,189.75,3.03]
[1755479916039,2.96,189.85,189.75,3.03]
[1755479916745,2.96,189.83,189.74,3.03]
[1755479916939,5.83526487,189.89,189.74,3.03]
[1755479917144,2.96,189.83,189.74,3.03]
[1755479917345,2.96,189.83,189.77,5.266]
[1755479917543,3.32086544,189.89,189.71,135.42086544]
[1755479917745,4.04125246,189.88,189.79,3.03]
[1755479917936,2.96,189.86,189.79,3.03]
[1755479918140,2.96,189.84,189.79,3.03]
[1755479918341,7.00125246,189.83,189.77,5.266]
[1755479918640,2.96,189.83,189.81,3.03]
[1755479919746,7.00524603,189.82,189.72,3.03]
[1755479919947,4.04539418,189.81,189.72,3.03]
[1755479920247,2.96,189.82,189.72,3.03]
[1755479920446,4.0465975,189.81,189.72,3.03]
[1755479920654,4.0466284,189.8,189.72,3.03]
[1755479920848,2.96,189.82,189.72,3.03]
[1755479921147,2.96,189.8,189.72,3.03]
[1755479921347,4.04681934,189.79,189.72,3.03]
[1755479922239,4.04681934,189.79,189.74,5.2671]
[1755479922440,4.04681934,189.79,189.75,3.03]
[1755479922640,2.96,189.82,189.75,3.03]
[1755479923039,4.04934656,189.81,189.75,3.03]
[1755479923242,2.96,189.82,189.75,3.03]
[1755479923546,4.05176555,189.81,189.75,3.03]
[1755479923745,2.96,189.82,189.77,5.266]
[1755479924047,4.05176555,189.81,189.75,3.03]
[1755479924241,2.96,189.82,189.75,3.03]
[1755479924438,4.05517278,189.81,189.8,3.03]
[1755479924637,2.96,189.85,189.8,3.03]
[1755479924845,7.0146772,189.84,189.8,3.03]
[1755479925049,4.0546772,189.83,189.8,3.03]
[1755479925244,2.96,189.84,189.8,3.03]
[1755479925443,4.05494026,189.83,189.76,3.03]
[1755479925638,4.05494026,189.82,189.79,3.03]
[1755479925848,2.96,189.83,189.79,3.03]
[1755479926148,2.96,189.81,189.8,3.03]
[1755479926345,7.00919794,189.81,189.79,3.03]
[1755479926548,4.04919794,189.8,189.79,3.03]
[1755479926847,2.96,189.79,189.77,3.03]
[1755479927149,2.96,189.79,189.78,3.03]
[1755479927343,7.01072687,189.79,189.78,3.03]
[1755479928544,2.91,189.78,189.75,2.95]
[1755479928758,4.05072687,189.77,189.76,2.95]
[1755479929252,4.05326474,189.77,189.76,2.95]
[1755479929454,2.91,189.78,189.71,135.42086544]
[1755479929648,2.91,189.78,189.72,2.95]
[1755479929848,2.91,189.78,189.73,5.2673]
[1755479930052,2.91,189.78,189.74,2.95]
[1755479930255,4.05530252,189.77,189.74,2.95]
[1755479930449,2.91,189.78,189.74,2.95]
[1755479930651,4.05530252,189.77,189.74,2.95]
[1755479930848,2.91,189.78,189.74,2.95]
[1755479931048,4.05530252,189.77,189.74,2.95]
[1755479931252,2.91,189.78,189.74,2.95]
[1755479931449,4.05701436,189.77,189.74,2.95]
[1755479931651,2.91,189.78,189.74,2.95]
[1755479931852,4.05701436,189.77,189.74,2.95]
[1755479932058,4.05617453,189.76,189.73,2.95]
[1755479932354,4.05846188,189.75,189.74,2.95]
[1755479932550,2.91,189.81,189.74,2.95]
[1755479932748,2.91,189.81,189.71,132.1]
[1755479932749,2.91,189.79,189.72,2.95]
[1755479932950,2.91,189.77,189.72,2.95]
[1755479933147,4.05828416,189.76,189.72,2.95]
[1755479933343,4.05828416,189.75,189.73,2.95]
[1755479933547,2.91,189.81,189.73,2.95]
[1755479933747,2.91,189.79,189.73,2.95]
[1755479933948,2.91,189.77,189.73,2.95]
[1755479934253,4.06049577,189.76,189.74,2.95]
[1755479934450,2.91,189.82,189.74,2.95]
[1755479934650,4.06336284,189.81,189.74,2.95]
[1755479934952,6.97336284,189.8,189.72,2.95]
[1755479935152,4.06336284,189.79,189.72,2.95]
[1755479935353,4.06336284,189.78,189.72,2.95]
[1755479935551,4.06336284,189.77,189.72,2.95]
[1755479935751,4.06336284,189.76,189.72,2.95]
[1755479935954,2.91,189.8,189.72,2.95]
[1755479936253,2.91,189.78,189.72,2.95]
[1755479936454,2.91,189.76,189.72,2.95]
[1755479936655,4.06568619,189.75,189.72,5.2675]
[1755479936854,4.06674313,189.74,189.73,2.95]
[1755479937257,5.83526487,189.81,189.72,5.2675]
[1755479937550,2.91,189.79,189.72,2.95]
[1755479937758,4.0680683,189.78,189.72,2.95]
[1755479937956,4.0680683,189.77,189.76,5.2665]
[1755479938154,4.0680683,189.77,189.76,8.2165]
[1755479938756,4.0680683,189.77,189.76,2.95]
[1755479939157,5.83526487,189.85,189.71,132.1]
[1755479939359,2.91,189.83,189.72,2.95]
[1755479939559,4.06818976,189.82,189.72,2.95]
[1755479939863,2.91,189.8,189.75,8.2166]
[1755479940160,2.91,189.78,189.75,5.2666]
[1755479940359,4.06818976,189.77,189.75,8.2166]
[1755479940562,2.91,189.83,189.76,5.2665]
[1755479940763,2.91,189.81,189.76,8.2165]
[1755479940957,5.83526487,189.84,189.71,132.1]
[1755479940958,2.91,189.84,189.77,2.95]
[1755479941166,4.0676397,189.83,189.77,2.95]
[1755479941357,4.0676397,189.82,189.77,2.95]
[1755479941554,5.83526487,189.91,189.8,2.95]
[1755479941863,2.91,189.89,189.8,2.95]
[1755479942063,2.91,189.87,189.8,2.95]
[1755479942262,2.91,189.85,189.8,2.95]
[1755479942464,6.96608491,189.84,189.82,2.95]
[1755479942660,2.91,189.84,189.82,2.95]
[1755479943166,5.83526487,189.92,189.82,2.95]
[1755479943367,2.91,189.83,189.77,2.95]
[1755479943571,6.94707563,189.82,189.77,2.95]
[1755479943769,2.91,189.82,189.78,5.2657]
[1755479943966,2.91,189.82,189.77,2.95]
[1755479944168,2.91,189.89,189.77,2.95]
[1755479944366,11.95380195,189.88,189.78,5.2659]
[1755479944568,2.91,189.86,189.79,2.95]
[1755479944769,2.91,189.84,189.79,2.95]
[1755479944969,6.94749529,189.83,189.76,3.32086544]
[1755479945162,2.91,189.83,189.77,2.95]
[1755479945368,2.91,189.81,189.73,2.95]
[1755479945568,4.03743829,189.8,189.75,5.2668]
[1755479945775,2.91,189.81,189.73,2.95]
[1755479945975,6.94811217,189.8,189.73,2.95]
[1755479946274,2.91,189.78,189.77,2.95]
[1755479947171,5.83526487,189.87,189.78,2.95]
[1755479947373,11.95860617,189.86,189.76,2.95]
[1755479947579,2.91,189.78,189.76,2.95]
[1755479947767,2.91,189.86,189.73,2.95]
[1755479947970,2.91,189.84,189.73,2.95]
[1755479948276,2.91,189.82,189.73,2.95]
[1755479948474,4.03958127,189.81,189.73,2.95]
[1755479948669,2.91,189.79,189.73,2.95]
[1755479948975,4.03958127,189.78,189.74,2.95]
[1755479949176,4.03958127,189.78,189.72,134.92086544]
[1755479949177,4.03958127,189.77,189.72,134.92086544]
[1755479949475,2.91,189.78,189.76,2.95]
[1755479949672,4.04005893,189.77,189.76,2.95]
[1755479949976,2.91,189.76,189.73,2.95]
[1755479950176,2.91,189.74,189.72,131.6]
[1755479950475,2.91,189.74,189.63,353.9]
[1755479950476,2.91,189.71,189.7,2.95]
[1755479951274,2.91,189.71,189.67,131.6]
[1755479951467,4.11466354,189.7,189.64,2.95]
[1755479951674,4.11455479,189.69,189.65,2.95]
[1755479951970,2.91,189.67,189.62,2.95]
[1755479952167,4.11455479,189.66,189.62,2.95]
[1755479952371,2.91,189.64,189.61,5.2704]
[1755479952579,2.91,189.64,189.63,2.95]
[1755479953074,2.91,189.64,189.58,131.62]
[1755479953075,2.91,189.63,189.58,131.62]
[1755479953273,3.32086544,189.68,189.61,2.95]
[1755479953465,2.91,189.62,189.61,2.95]
[1755479953872,3.32086544,189.68,189.59,2.95]
[1755479954072,2.91,189.6,189.59,2.95]
[1755479954275,7.01288213,189.6,189.54,2.95]
[1755479954475,9.15613031,189.68,189.48,131.82]
[1755479954476,7.01222435,189.59,189.48,131.82]
[1755479954676,5.272,189.57,189.52,5.273]
[1755479954980,2.91,189.56,189.54,2.95]
[1755479955582,2.91,189.63,189.54,2.95]
[1755479955776,5.83526487,189.61,189.54,2.95]
[1755479956081,2.91,189.59,189.54,2.95]
[1755479956381,2.91,189.56,189.54,2.95]
[1755479956681,6.99984339,189.55,189.49,2.95]
[1755479956883,6.99984339,189.54,189.49,2.95]
[1755479957081,4.08984339,189.53,189.49,2.95]
[1755479957276,4.08984339,189.52,189.5,2.95]
[1755479957480,4.08984339,189.51,189.5,2.95]
[1755479958476,6.94984339,189.51,189.5,2.95]
[1755479959586,4.08984339,189.51,189.5,2.95]
[1755479960089,4.08984339,189.51,189.48,2.84]
[1755479960090,2.86,189.5,189.48,2.84]
[1755479960382,4.08984339,189.49,189.48,2.84]
[1755479962081,4.08984339,189.49,189.39,2.84]
[1755479962082,2.86,189.48,189.39,2.84]
[1755479962280,4.08984339,189.49,189.39,2.84]
[1755479962281,2.86,189.46,189.39,2.84]
[1755479962482,4.08984339,189.45,189.39,2.84]
[1755479962688,4.08984339,189.44,189.42,5.2759]
[1755479962891,2.86,189.46,189.44,2.84]
[1755479963092,7.57732533,189.45,189.39,2.84]
[1755479963388,4.71732533,189.44,189.39,2.84]
[1755479963581,4.71732533,189.43,189.39,2.84]
[1755479963781,4.71732533,189.42,189.39,2.84]
[1755479963981,4.71732533,189.42,189.38,135.16086544]
[1755479963982,4.71732533,189.41,189.4,8.1165]
[1755479964887,4.71732533,189.41,189.4,2.84]
[1755479966189,4.71732533,189.41,189.4,8.1165]
[1755479967187,5.83526487,189.46,189.38,135.16086544]
[1755479967379,5.79481457,189.46,189.39,2.84]
[1755479967583,2.86,189.45,189.39,2.84]
[1755479968087,2.86,189.48,189.39,2.84]
[1755479968489,2.86,189.48,189.46,2.84]
[1755479968891,2.86,189.48,189.38,135.16086544]
[1755479969090,2.86,189.51,189.43,2.84]
[1755479969290,2.86,189.51,189.39,2.84]
[1755479969490,2.86,189.45,189.41,5.276]
[1755479969696,2.86,189.45,189.39,2.84]
[1755479969993,2.86,189.49,189.41,2.84]
[1755479970386,2.86,189.48,189.41,2.84]
[1755479971197,2.86,189.48,189.4,5.2761]
[1755479971583,8.1349,189.46,189.4,8.1161]
[1755479971790,8.1349,189.46,189.38,131.84]
[1755479971791,2.86,189.44,189.41,2.84]
[1755479971988,2.86,189.46,189.39,2.84]
[1755479973087,2.86,189.45,189.42,2.84]
[1755479973292,5.79481457,189.47,189.42,2.84]
[1755479973494,2.86,189.43,189.42,2.84]
[1755479973897,2.86,189.45,189.43,2.84]
[1755479974286,2.86,189.43,189.41,2.84]
[1755479974689,2.86,189.44,189.39,2.84]
[1755479974889,2.86,189.44,189.4,2.84]
[1755479975398,5.2758,189.43,189.4,2.84]
[1755479975693,2.86,189.41,189.4,2.84]
[1755479975898,5.79481457,189.43,189.38,131.84]
[1755479976097,2.86,189.42,189.37,2.84]
[1755479976300,2.86,189.42,189.38,2.84]
[1755479976593,5.79481457,189.42,189.39,2.84]
[1755479976795,2.86,189.42,189.31,354.22]
[1755479976994,5.2768,189.39,189.34,5.2779]
[1755479977189,2.86,189.41,189.31,354.22]
[1755479977190,5.79481457,189.41,189.31,354.22]
[1755479977387,2.86,189.37,189.32,2.84]
[1755479977586,8.65481457,189.35,189.22,2.84]